bitfinex-derivatives/quotes_BNBF0:USTF0_20250710
["timestamp","ask_amount","ask_price","bid_price","bid_amount"]
[1752135032673,1.673011,671.97,671.48,1.671928]
[1752135034680,1.673011,671.96,671.48,1.671928]
[1752135034880,1.673011,671.96,671.49,1.442]
[1752135035080,1.673011,671.96,671.49,3.113928]
[1752135036976,1.673011,671.96,671.5,1.671928]
[1752135037480,1.673011,671.95,671.5,1.671928]
[1752135038381,1.673011,671.96,671.49,3.113928]
[1752135038781,1.673011,671.96,671.49,1.442]
[1752135038991,1.673011,672.0,671.49,1.442]
[1752135039182,1.673011,671.99,671.49,1.442]
[1752135042284,0.25902686,672.12,671.49,1.442]
[1752135042479,1.6734176,671.99,671.49,1.442]
[1752135045087,1.6734176,671.98,671.49,1.442]
[1752135047284,1.6734176,671.99,671.49,1.442]
[1752135048381,1.6734176,671.98,671.49,1.442]
[1752135048783,0.98619956,672.04,671.49,1.442]
[1752135048784,1.6734176,671.96,671.49,1.442]
[1752135050409,1.6734176,671.95,671.49,3.1143369]
[1752135052485,1.6734176,671.96,671.49,1.442]
[1752135054088,1.6734176,671.97,671.49,1.442]
[1752135056290,1.6734176,671.98,671.49,1.442]
[1752135057185,1.6734176,671.96,671.49,3.1143369]
[1752135057389,1.6734176,671.96,671.5,1.6723369]
[1752135057690,1.6734176,671.97,671.5,1.6723369]
[1752135058689,1.6734176,671.96,671.5,1.6723369]
[1752135059994,1.6734176,671.96,671.51,1.6723369]
[1752135061493,1.6734176,671.97,671.49,3.1143369]
[1752135062299,1.6734176,671.96,671.5,1.6723369]
[1752135064905,1.6734176,671.98,671.49,1.442]
[1752135065607,1.6734176,671.97,671.49,3.1143369]
[1752135070003,1.6734176,671.97,671.49,1.6723369]
[1752135070408,1.6734176,671.97,671.5,1.6723369]
[1752135070808,1.6734176,671.98,671.5,1.6723369]
[1752135071406,1.6734176,671.97,671.52,1.6723369]
[1752135072408,1.6734176,671.97,671.53,1.541]
[1752135073510,1.6734176,671.96,671.53,1.541]
[1752135073709,1.6734176,671.97,671.53,1.541]
[1752135074814,1.6734176,671.95,671.54,1.6723369]
[1752135076214,1.6734176,671.96,671.53,3.2133369]
[1752135078514,1.6734176,671.98,671.53,1.541]
[1752135081415,0.98533632,672.02,671.53,1.541]
[1752135081615,0.98533632,672.11,671.53,1.541]
[1752135081811,0.98533632,672.1,671.53,1.541]
[1752135082013,0.98533632,672.09,671.53,1.541]
[1752135082210,0.98533632,672.08,671.53,1.541]
[1752135082415,0.98533632,672.07,671.53,1.541]
[1752135082612,0.98533632,672.06,671.53,1.541]
[1752135082815,0.98533632,672.05,671.53,1.541]
[1752135083016,0.98533632,672.04,671.53,1.541]
[1752135083212,0.98533632,672.11,671.53,1.541]
[1752135083413,0.98533632,672.1,671.53,1.541]
[1752135083613,0.98533632,672.09,671.53,1.541]
[1752135083816,0.98533632,672.08,671.53,1.541]
[1752135084017,0.98533632,672.07,671.53,1.541]
[1752135084219,0.98533632,672.06,671.53,1.541]
[1752135084520,0.98533632,672.05,671.53,1.541]
[1752135084723,0.98533632,672.04,671.53,1.541]
[1752135084922,0.98533632,672.03,671.53,1.541]
[1752135085120,0.98533632,672.11,671.53,1.541]
[1752135085321,0.98533632,672.1,671.53,1.541]
[1752135085522,0.98533632,672.09,671.53,1.541]
[1752135085822,0.98533632,672.08,671.53,1.541]
[1752135086021,0.98533632,672.07,671.53,1.541]
[1752135086224,0.25902686,672.12,671.53,1.541]
[1752135086225,1.6732419,671.99,671.53,1.541]
[1752135087027,1.6732419,671.98,671.53,1.541]
[1752135088324,1.6732419,671.99,671.53,1.541]
[1752135088544,1.6732419,671.99,671.46,1.6728198]
[1752135088724,1.6732419,671.99,671.45,1.6728198]
[1752135088923,1.6732419,672.0,671.45,1.6728198]
[1752135090328,1.6732419,672.0,671.44,1.6728198]
[1752135092429,1.6732419,672.0,671.45,1.506]
[1752135093128,1.6732419,671.99,671.45,3.1788198]
[1752135093532,1.6732419,672.0,671.45,3.1788198]
[1752135094428,1.6732419,671.99,671.45,3.1788198]
[1752135095032,1.6732419,671.99,671.46,1.6728198]
[1752135098133,0.25902686,672.12,671.47,1.6728198]
[1752135098134,1.6732419,671.98,671.47,1.6728198]
[1752135098430,1.6732419,671.99,671.46,1.6728198]
[1752135098631,1.6732419,671.98,671.47,1.6728198]
[1752135098832,1.6732419,671.98,671.48,1.6728198]
[1752135100535,1.6732419,671.98,671.47,1.6728198]
[1752135101433,1.6732419,671.99,671.46,1.6728198]
[1752135101837,1.6732419,671.98,671.47,1.6728198]
[1752135102236,1.6732419,671.99,671.47,1.6728198]
[1752135102533,1.6732419,671.99,671.46,1.6728198]
[1752135103131,1.6732419,671.99,671.45,3.1788198]
[1752135103538,1.6732419,671.99,671.46,1.6728198]
[1752135104434,1.6732419,672.0,671.45,3.1788198]
[1752135106640,1.6732419,672.01,671.45,1.506]
[1752135111246,1.6732419,672.0,671.45,1.506]
[1752135111746,1.6732419,672.0,671.45,3.1788198]
[1752135111946,1.6732419,671.99,671.46,1.6728198]
[1752135112148,1.6732419,671.99,671.45,3.1788198]
[1752135112550,1.6732419,671.98,671.47,1.6728198]
[1752135112746,1.6732419,671.99,671.47,1.6728198]
[1752135112944,1.6732419,671.98,671.47,1.6728198]
[1752135113952,1.6732419,671.98,671.48,1.6728198]
[1752135114945,1.6732419,671.96,671.5,1.6728198]
[1752135115148,1.6732419,671.97,671.49,1.6728198]
[1752135117152,0.25902686,672.12,671.45,1.506]
[1752135122253,0.2589594,672.28,671.45,1.506]
[1752135122753,0.25895747,672.28,671.45,1.506]
[1752135125255,0.25895747,687.2,671.45,1.506]
[1752135131455,0.98315581,687.19,671.45,1.506]
[1752135131659,0.98315581,687.18,671.45,1.506]
[1752135131857,0.25895747,687.2,671.45,1.506]
[1752135131858,0.98315581,687.17,671.45,1.506]
[1752135132059,0.98315581,687.16,671.45,1.506]
[1752135132258,0.98315581,687.15,671.45,1.506]
[1752135132556,0.98315581,687.14,671.26,0.25902686]
[1752135132755,0.98315581,687.13,671.26,0.25902686]
[1752135132957,0.9831477,687.12,671.26,0.25902686]
[1752135133155,0.9831477,687.11,671.26,0.25902686]
[1752135133358,0.9831477,687.1,671.26,0.25902686]
[1752135133660,0.9831477,687.09,671.26,0.25902686]
[1752135133860,0.9831477,687.08,671.26,0.25902686]
[1752135134060,0.9831477,687.07,671.26,0.25902686]
[1752135134257,0.9831477,687.06,671.26,0.25902686]
[1752135134557,0.98292086,687.05,671.26,0.25902686]
[1752135134757,0.98292086,687.04,671.26,0.25902686]
[1752135135056,0.98292086,687.03,671.26,0.25902686]
[1752135135258,0.98292086,687.02,671.26,0.25902686]
[1752135135457,0.98292086,687.01,671.26,0.25902686]
[1752135135660,0.98292086,687.0,671.26,0.25902686]
[1752135135859,0.98292086,686.99,671.26,0.25902686]
[1752135136058,0.98292086,686.98,671.27,1.914]
[1752135136261,0.98292086,686.97,671.27,1.914]
[1752135136459,0.98292086,686.96,671.27,1.914]
[1752135136662,0.98292086,686.95,671.27,1.914]
[1752135136962,0.98292086,686.94,671.27,1.914]
[1752135137163,0.98292086,686.93,671.27,1.914]
[1752135137360,0.98292086,686.92,671.27,1.914]
[1752135137560,0.98292086,686.91,671.27,1.914]
[1752135137858,0.98292086,686.9,671.27,1.914]
[1752135138158,0.98292086,686.89,671.27,1.914]
[1752135138361,0.98292086,686.88,671.27,1.914]
[1752135138560,0.98292086,686.87,671.27,1.914]
[1752135138760,0.98292086,686.86,671.27,1.914]
[1752135138961,0.98292086,686.85,671.27,1.914]
[1752135139161,0.98292086,686.84,671.27,1.914]
[1752135139360,0.98292086,686.83,671.27,1.914]
[1752135139563,0.98292086,686.82,671.27,1.914]
[1752135139862,0.98292086,686.81,671.27,1.914]
[1752135140060,0.98292086,686.8,671.27,1.914]
[1752135140360,0.98292086,686.79,671.27,1.914]
[1752135140565,0.98292086,686.78,671.27,1.914]
[1752135140860,0.98292086,686.77,671.27,1.914]
[1752135141164,0.98292086,686.76,671.27,1.914]
[1752135141364,0.98292086,686.75,671.27,1.914]
[1752135141661,0.98292086,686.74,671.27,1.914]
[1752135141864,0.98292086,686.73,671.27,1.914]
[1752135142164,0.98292086,686.72,671.27,1.914]
[1752135142364,0.98292086,686.71,671.27,1.914]
[1752135142562,0.98292086,686.7,671.27,1.914]
[1752135142762,0.98292086,686.69,671.27,1.914]
[1752135142960,0.98292086,686.68,671.27,1.914]
[1752135143163,0.98292086,686.67,671.27,1.914]
[1752135143365,0.98292086,686.66,671.27,1.914]
[1752135143664,0.98292086,686.65,671.27,1.914]
[1752135143867,0.98292086,686.64,671.27,1.914]
[1752135144062,0.98292086,686.63,671.27,1.914]
[1752135144365,2.222671,672.45,671.58,1.6659692]
[1752135144668,1.6670032,672.29,671.58,1.6659692]
[1752135145168,1.6670032,672.3,671.58,1.6659692]
[1752135145369,5.5566776,673.26,671.27,1.914]
[1752135145370,1.6670032,672.31,671.56,1.6659692]
[1752135147067,1.6670032,672.31,671.55,1.6659692]
[1752135147271,1.6670032,672.32,671.54,1.6659692]
[1752135148171,1.6670032,672.33,671.53,1.6659692]
[1752135150774,1.6670032,672.34,671.52,1.6659692]
[1752135150970,1.6670032,672.34,671.51,1.6659692]
[1752135152371,1.6670032,672.34,671.27,1.914]
[1752135152372,1.6670032,672.34,671.52,1.6659692]
[1752135152575,1.6670032,672.34,671.51,1.6659692]
[1752135154384,0.98292086,672.51,671.32,2.2212923]
[1752135154583,1.6663551,672.34,671.52,1.6653386]
[1752135155185,1.6663551,672.33,671.52,1.6653386]
[1752135156886,1.6663551,672.33,671.53,1.6653386]
[1752135157284,1.6663551,672.32,671.54,1.6653386]
[1752135158083,1.6663551,672.31,671.55,1.6653386]
[1752135160489,1.6663551,672.3,671.57,1.6653386]
[1752135160689,1.6663551,672.29,671.59,1.6653386]
[1752135161590,0.98137112,672.43,671.44,2.2212923]
[1752135161784,1.666534,672.29,671.59,1.665713]
[1752135162288,1.666534,672.28,671.6,1.665713]
[1752135162488,1.666534,672.28,671.61,1.665713]
[1752135163389,1.666534,672.28,671.27,1.914]
[1752135163390,1.666534,672.26,671.63,1.665713]
[1752135164593,1.666534,672.33,671.52,1.665713]
[1752135164787,1.666534,672.34,671.51,1.665713]
[1752135165189,1.666534,672.34,671.52,1.665713]
[1752135166387,1.666534,672.33,671.53,1.665713]
[1752135168294,1.666534,672.31,671.55,1.665713]
[1752135168594,1.666534,672.29,671.58,1.665713]
[1752135169391,1.666534,672.28,671.59,1.665713]
[1752135170195,1.666534,672.28,671.6,1.665713]
[1752135170397,1.666534,672.27,671.6,1.665713]
[1752135170997,1.666534,672.27,671.61,1.665713]
[1752135172393,1.666534,672.26,671.62,1.665713]
[1752135173094,1.666534,672.25,671.64,1.665713]
[1752135173397,1.666534,672.24,671.64,1.665713]
[1752135174596,1.666534,672.24,671.65,1.665713]
[1752135175397,1.666534,672.23,671.65,1.665713]
[1752135176594,1.666534,672.23,671.66,1.665713]
[1752135177393,1.666534,672.22,671.67,1.665713]
[1752135178598,1.666534,672.21,671.68,1.665713]
[1752135179397,1.666534,672.19,671.7,1.665713]
[1752135179799,1.666534,672.2,671.7,1.665713]
[1752135180097,1.666534,672.19,671.7,1.665713]
[1752135180294,1.666534,672.18,671.73,1.665713]
[1752135181497,1.666534,672.17,671.74,1.665713]
[1752135182094,1.666534,672.18,671.72,1.665713]
[1752135183294,1.666534,672.17,671.72,1.665713]
[1752135183697,1.666534,672.2,671.69,1.665713]
[1752135184303,1.666534,672.19,671.69,1.665713]
[1752135185098,1.666534,672.2,671.69,1.665713]
[1752135185305,1.666534,672.19,671.69,1.665713]
[1752135185602,0.25895073,672.3,671.52,1.665713]
[1752135185799,0.25895073,672.3,671.55,1.665713]
[1752135186004,0.25895073,672.3,671.43,1.665713]
[1752135186204,1.666534,672.26,671.58,1.665713]
[1752135187005,1.666534,672.27,671.57,1.665713]
[1752135187300,1.666534,672.25,671.59,1.665713]
[1752135188206,1.666534,672.23,671.62,1.665713]
[1752135188407,1.666534,672.23,671.63,1.665713]
[1752135189202,1.666534,672.22,671.63,1.665713]
[1752135189506,1.666534,672.22,671.39,1.36]
[1752135189507,1.666534,672.2,671.53,1.665713]
[1752135190402,1.666534,672.2,671.54,1.665713]
[1752135191202,1.666534,672.19,671.54,1.665713]
[1752135192906,1.666534,672.19,671.55,1.665713]
[1752135193907,1.666534,672.18,671.56,1.665713]
[1752135195409,1.666534,672.18,671.57,1.665713]
[1752135197509,1.666534,672.18,671.56,1.665713]
[1752135198605,0.25895073,672.3,671.39,1.36]
[1752135198606,1.666534,672.19,671.55,1.665713]
[1752135199008,1.666534,672.15,671.61,1.665713]
[1752135199311,1.666534,672.14,671.63,1.665713]
[1752135199712,1.666534,672.14,671.62,1.665713]
[1752135200108,1.666534,672.14,671.63,1.665713]
[1752135200313,1.666534,672.13,671.64,1.665713]
[1752135200611,1.666534,672.13,671.63,1.665713]
[1752135201509,1.666534,672.14,671.63,1.665713]
[1752135201910,1.666534,672.13,671.63,1.665713]
[1752135202310,1.666534,672.13,671.64,1.665713]
[1752135203015,1.666534,672.14,671.63,1.665713]
[1752135204213,1.666534,672.15,671.61,1.665713]
[1752135206418,1.666534,672.16,671.61,1.665713]
[1752135206618,1.666534,672.16,671.6,1.665713]
[1752135206820,1.666534,672.17,671.58,1.665713]
[1752135208318,1.666534,672.18,671.57,1.665713]
[1752135208521,1.666534,672.17,671.58,1.665713]
[1752135209624,1.666534,672.17,671.59,1.665713]
[1752135209822,1.666534,672.17,671.58,1.665713]
[1752135212127,1.666534,672.18,671.57,1.665713]
[1752135214233,1.666534,672.17,671.58,1.665713]
[1752135215826,1.666534,672.18,671.57,1.665713]
[1752135216424,1.666534,672.19,671.58,1.289]
[1752135216625,1.666534,672.18,671.58,1.289]
[1752135217927,1.666534,672.17,671.59,1.665713]
[1752135221234,1.666534,672.16,671.6,1.665713]
[1752135224739,1.666534,672.17,671.58,2.954713]
[1752135225337,1.666534,672.15,671.61,1.665713]
[1752135227336,1.666534,672.15,671.58,1.289]
[1752135227337,1.666534,672.15,671.62,1.665713]
[1752135230242,1.666534,672.14,671.62,1.665713]
[1752135230446,1.666534,672.15,671.62,1.665713]
[1752135230742,1.666534,672.15,671.61,1.665713]
[1752135230941,1.666534,672.15,671.62,1.665713]
[1752135231543,1.666534,672.15,671.61,1.665713]
[1752135232343,1.666534,672.14,671.62,1.665713]
[1752135232746,1.666534,672.15,671.62,1.665713]
[1752135233444,1.666534,672.15,671.61,1.665713]
[1752135234044,1.666534,672.15,671.62,1.719]
[1752135234550,1.666534,672.15,671.62,3.384713]
[1752135234747,1.666534,672.14,671.63,1.665713]
[1752135235150,1.666534,672.13,671.64,1.665713]
[1752135236050,1.666534,672.12,671.63,1.665713]
[1752135236451,1.666534,672.12,671.64,1.665713]
[1752135236851,1.666534,672.12,671.63,1.665713]
[1752135237350,1.666534,672.12,671.64,1.665713]
[1752135238850,1.666534,672.24,671.62,1.719]
[1752135243057,1.666534,672.23,671.62,1.719]
[1752135246559,1.666534,672.22,671.62,1.719]
[1752135246753,1.666534,672.24,671.62,1.719]
[1752135248560,1.666534,672.23,671.62,1.719]
[1752135248760,1.666534,672.19,671.62,1.719]
[1752135250061,1.666534,672.19,671.55,1.665713]
[1752135253462,1.666534,672.19,671.56,1.92]
[1752135254862,1.666534,672.15,671.59,1.665713]
[1752135255161,1.666534,672.15,671.6,1.665713]
[1752135256570,1.666534,672.11,671.67,1.665713]
[1752135257763,1.666534,672.11,671.66,1.665713]
[1752135260965,1.666534,672.12,671.65,1.665713]
[1752135262473,1.666534,672.11,671.66,1.665713]
[1752135264973,1.666534,672.09,671.69,1.665713]
[1752135265873,2.222671,672.23,671.56,1.92]
[1752135266073,0.25895073,672.3,671.56,1.92]
[1752135281491,0.25895073,672.3,671.33,0.25895073]
[1752135284196,0.25895073,672.3,671.34,1.717]
[1752135292802,0.25895073,672.3,671.6,1.6684951]
[1752135293007,1.6714254,672.27,671.6,1.6684951]
[1752135294304,1.6714254,672.22,671.68,1.6684951]
[1752135295806,1.6714254,672.2,671.71,1.6684951]
[1752135296905,1.6714254,672.19,671.72,1.6684951]
[1752135297309,1.6714254,672.21,671.69,1.6684951]
[1752135297605,1.6714254,672.22,671.68,1.6684951]
[1752135299209,1.6714254,672.22,671.34,1.717]
[1752135299210,1.6714254,672.22,671.67,1.6684951]
[1752135302512,1.6714254,672.23,671.67,1.6684951]
[1752135302710,1.6714254,672.23,671.66,1.6684951]
[1752135302911,1.6714254,672.23,671.67,1.6684951]
[1752135303915,1.6714254,672.21,671.69,1.6684951]
[1752135304116,1.6714254,672.21,671.7,1.6684951]
[1752135304617,1.6714254,672.2,671.7,1.6684951]
[1752135305815,1.6714254,672.2,671.71,1.6684951]
[1752135307415,1.6714254,672.2,671.7,1.6684951]
[1752135308621,1.6714254,672.21,671.7,1.6684951]
[1752135308920,1.6714254,672.2,671.7,1.6684951]
[1752135309320,1.6714254,672.21,671.7,1.6684951]
[1752135311318,1.6714254,672.19,671.72,1.6684951]
[1752135313624,1.6714254,672.25,671.65,1.6684951]
[1752135314221,1.6714254,672.31,671.71,1.6684951]
[1752135315125,1.6714254,672.31,671.72,1.6684951]
[1752135315325,1.6714254,672.32,671.71,1.6684951]
[1752135315928,1.6714254,672.31,671.72,1.6684951]
[1752135316133,1.6714254,672.32,671.71,1.6684951]
[1752135316828,1.6714254,672.33,671.72,1.6684951]
[1752135317226,1.6714254,672.33,671.71,1.6684951]
[1752135318128,1.6714254,672.34,671.71,1.6684951]
[1752135318635,1.6714254,672.33,671.71,1.6684951]
[1752135320128,1.6714254,672.34,671.71,1.6684951]
[1752135320828,1.6714254,672.32,671.74,1.6684951]
[1752135321528,1.6714254,672.33,671.72,1.6684951]
[1752135322933,1.6699689,672.33,671.72,1.6668741]
[1752135323127,1.6699689,672.34,671.72,1.6668741]
[1752135323632,1.6699689,672.32,671.74,1.6668741]
[1752135323829,1.6699689,672.33,671.73,1.6668741]
[1752135326135,1.6699689,672.33,671.72,1.6668741]
[1752135326734,1.6699689,672.33,671.33,0.25895073]
[1752135326735,1.6699689,672.33,671.73,1.6668741]
[1752135331241,1.6699689,672.32,671.75,1.6668741]
[1752135333145,1.6699689,672.31,671.76,1.6668741]
[1752135333445,1.6699689,672.3,671.78,1.6668741]
[1752135333745,0.25891701,672.46,671.8,1.6668741]
[1752135333746,1.6699689,672.29,671.8,1.6668741]
[1752135333945,1.6699689,672.28,671.8,1.6668741]
[1752135334739,1.6699689,672.28,671.81,1.6668741]
[1752135336145,1.6699689,672.28,671.82,1.6668741]
[1752135336345,1.6699689,672.27,671.82,1.6668741]
[1752135337744,1.6699689,672.27,671.83,1.6668741]
[1752135338544,1.6699689,672.29,671.8,1.6668741]
[1752135339142,1.6699689,672.28,671.8,1.6668741]
[1752135339470,1.6699689,672.3,671.78,1.6668741]
[1752135344250,1.6699689,672.3,671.77,1.6668741]
[1752135344746,1.6699689,672.31,671.77,1.6668741]
[1752135345247,1.6699689,672.3,671.77,1.6668741]
[1752135346749,1.6699689,672.31,671.77,1.6668741]
[1752135347149,1.6699689,672.3,671.77,1.6668741]
[1752135348555,1.6699689,672.31,671.76,1.6668741]
[1752135351352,1.6699689,672.31,671.77,1.6668741]
[1752135353450,1.6699689,672.3,671.77,1.6668741]
[1752135353654,1.6699689,672.41,671.76,1.6668741]
[1752135354149,3.3428508,672.78,671.36,1.336]
[1752135354150,1.6699689,672.44,671.79,1.6668741]
[1752135354354,0.98343784,672.43,671.79,1.6668741]
[1752135354950,1.6699689,672.44,671.79,1.6668741]
[1752135355151,1.6699689,672.5,671.82,1.6668741]
[1752135355348,0.98343784,672.49,671.82,1.6668741]
[1752135355549,0.98343784,672.48,671.82,1.6668741]
[1752135355853,1.6699689,672.5,671.82,1.6668741]
[1752135356751,1.6699689,672.51,671.81,1.6668741]
[1752135357549,1.6699689,672.51,671.8,1.6668741]
[1752135358350,1.6699689,672.52,671.8,1.6668741]
[1752135359249,1.6699689,672.52,671.79,1.6668741]
[1752135360454,0.25887271,672.56,671.79,1.6668741]
[1752135360455,1.6699689,672.53,671.79,1.6668741]
[1752135361453,1.6699689,672.54,671.78,1.6668741]
[1752135361953,1.6699689,672.53,671.79,1.6668741]
[1752135362157,1.6699689,672.54,671.78,1.6668741]
[1752135362954,1.6699689,672.53,671.79,1.6668741]
[1752135363257,1.6699689,672.54,671.79,1.6668741]
[1752135363759,1.6699689,672.55,671.75,1.6668741]
[1752135363958,1.6699689,672.55,671.76,1.6668741]
[1752135364354,1.6699689,672.55,671.75,1.6668741]
[1752135364857,1.6699689,672.55,671.76,1.6668741]
[1752135365057,1.6699689,672.55,671.75,1.6668741]
[1752135366154,1.92884161,672.56,671.75,1.6668741]
[1752135366954,1.6699689,672.55,671.75,1.6668741]
[1752135367257,1.92884161,672.56,671.75,1.6668741]
[1752135368059,1.92884161,672.56,671.76,1.6668741]
[1752135368255,1.92884161,672.56,671.75,1.6668741]
[1752135370360,1.92884161,672.56,671.76,1.6668741]
[1752135372560,1.92884161,672.56,671.75,1.6668741]
[1752135373259,1.92884161,672.56,671.76,1.6668741]
[1752135373463,1.6699689,672.55,671.77,1.6668741]
[1752135373661,1.6699689,672.54,671.79,1.6668741]
[1752135373860,1.6699689,672.53,671.79,1.6668741]
[1752135374368,1.6699689,672.53,671.8,1.6668741]
[1752135374660,1.6699689,672.52,671.81,1.6668741]
[1752135375065,1.6699689,672.51,671.82,1.6668741]
[1752135375266,1.6699689,672.51,671.83,1.6668741]
[1752135375466,1.6699689,672.52,671.83,1.6668741]
[1752135376067,1.6699689,672.54,671.84,1.6668741]
[1752135377469,1.6699689,672.53,671.86,1.6668741]
[1752135377670,1.6699689,672.56,671.8,1.6668741]
[1752135378171,1.6699689,672.57,671.8,1.6668741]
[1752135379070,1.6699689,672.59,671.83,1.6668741]
[1752135379567,1.6699689,672.6,671.83,1.6668741]
[1752135379967,1.6699689,672.59,671.83,1.6668741]
[1752135381068,1.6699689,672.6,671.83,1.6668741]
[1752135383271,1.6699689,672.6,671.49,0.25885153]
[1752135383272,0.25883324,672.66,671.72,1.6668741]
[1752135383668,0.25883324,672.66,671.49,0.25885153]
[1752135383669,1.92880214,672.66,671.74,1.6668741]
[1752135384667,1.92880214,672.66,671.49,2.48351163]
[1752135384668,1.92880214,672.66,671.73,1.6668741]
[1752135384969,0.25883324,672.66,671.77,1.6668741]
[1752135386469,0.25883324,672.66,671.76,1.6668741]
[1752135386974,0.25883324,672.66,671.49,0.25885153]
[1752135386975,0.25883324,672.66,671.8,1.6668741]
[1752135387173,0.25883324,672.66,671.79,1.6668741]
[1752135388971,1.6699689,672.82,671.71,1.6668741]
[1752135389172,3.3428508,673.43,671.49,0.25885153]
[1752135389173,1.6699689,672.83,671.84,1.6668741]
[1752135389376,1.6699689,672.82,671.85,1.6668741]
[1752135389577,1.6699689,672.82,671.87,1.6668741]
[1752135390173,1.6699689,672.82,671.86,1.6668741]
[1752135391077,1.6699689,672.82,671.62,2.2246601]
[1752135391078,1.6699689,672.81,671.88,1.6668741]
[1752135391277,1.6699689,672.79,671.9,1.6668741]
[1752135391879,1.6699689,672.75,671.97,1.6668741]
[1752135392079,1.6699689,672.78,672.01,1.6668741]
[1752135393179,1.6699689,672.79,672.0,1.6668741]
[1752135393576,1.6699689,672.78,672.01,1.6668741]
[1752135394082,1.6699689,672.78,672.02,1.6668741]
[1752135394481,1.6699689,672.77,672.03,1.6668741]
[1752135394878,1.6699689,672.8,672.04,1.6668741]
[1752135395078,1.6699689,672.79,672.04,1.6668741]
[1752135395281,1.6699689,672.8,672.04,1.6668741]
[1752135396177,0.9815001,672.9,671.75,3.3369902]
[1752135396479,0.9815001,672.9,671.49,0.25885153]
[1752135396682,0.9815001,672.89,671.49,0.25885153]
[1752135396982,0.25874472,672.91,671.49,0.25885153]
[1752135401392,0.25874472,672.91,671.67,3.3145937]
[1752135401596,0.25874472,672.91,671.99,1.6572968]
[1752135401597,1.6627282,672.84,671.99,1.6572968]
[1752135402996,1.6627282,672.87,671.97,1.6572968]
[1752135403196,1.6627282,673.04,672.15,1.6572968]
[1752135403695,1.6627282,673.05,672.16,1.6572968]
[1752135404197,1.6627282,673.06,672.15,1.6572968]
[1752135404896,1.92143733,673.08,672.13,1.6572968]
[1752135405196,0.25870913,673.08,672.08,1.6572968]
[1752135405395,0.25870913,673.08,672.09,1.6572968]
[1752135406200,1.6627282,673.11,672.08,1.6572968]
[1752135406400,1.6627282,673.11,672.1,1.427]
[1752135409197,1.6627282,673.12,672.1,1.427]
[1752135411004,0.25867163,673.08,672.1,1.427]
[1752135411704,1.92139983,673.08,672.13,1.6572968]
[1752135412105,2.89794748,673.08,672.13,1.6572968]
[1752135412301,0.25867163,673.08,672.1,1.427]
[1752135420710,1.23506314,673.08,672.1,1.427]
[1752135420914,0.25867163,673.08,672.1,1.427]
[1752135421513,1.23506314,673.08,672.1,3.0842968]
[1752135421711,0.97639151,673.07,672.11,1.6572968]
[1752135422509,0.25867163,673.08,672.11,1.6572968]
[1752135423114,1.23500761,673.08,672.11,1.6572968]
[1752135423411,0.25867163,673.08,672.11,1.6572968]
[1752135423915,0.97633598,673.07,672.12,1.6572968]
[1752135424116,0.97633598,673.07,672.13,1.6572968]
[1752135425214,0.25867163,673.08,672.13,1.6572968]
[1752135425416,1.23500761,673.08,672.1,3.0842968]
[1752135425712,0.25867163,673.08,672.1,3.0842968]
[1752135426411,1.23500761,673.08,672.1,3.0842968]
[1752135426615,0.25867163,673.08,672.1,3.0842968]
[1752135426916,0.25867163,673.08,672.1,1.427]
[1752135431417,0.25867163,673.08,672.09,1.6572968]
[1752135431717,0.25867163,673.08,672.08,1.6572968]
[1752135432913,0.25867163,673.08,672.07,1.6572968]
[1752135433118,0.25867163,673.08,672.08,1.6572968]
[1752135434314,0.25867163,673.08,672.06,1.6572968]
[1752135435016,0.25867163,673.08,672.07,1.231]
[1752135435416,0.25867163,673.08,672.12,1.6572968]
[1752135435716,0.25867163,673.08,672.13,1.6572968]
[1752135435915,0.25867163,673.08,672.12,1.6572968]
[1752135436118,0.25867163,673.08,672.13,1.6572968]
[1752135436916,0.25867163,673.08,672.14,1.6572968]
[1752135437121,0.25867163,673.08,672.16,1.6572968]
[1752135439121,0.25867163,673.08,672.17,1.6572968]
[1752135439421,0.25867163,673.08,672.1,1.6572968]
[1752135440719,0.25867163,673.08,672.11,1.6572968]
[1752135440920,0.25867163,673.08,672.15,1.6572968]
[1752135441117,0.25867163,673.08,672.16,1.6572968]
[1752135442221,0.25867163,673.08,672.17,1.6572968]
[1752135443120,0.25867163,673.08,672.18,1.6572968]
[1752135443521,0.25867163,673.08,672.19,1.6572968]
[1752135444126,0.25867163,673.08,672.2,1.6572968]
[1752135444924,0.25867163,673.08,672.16,1.6572968]
[1752135445126,0.25867163,673.08,672.17,1.6572968]